Cogmind - Beta 14 @@@ ROGUE MODE // 2024.11.01 @ 15:36:51 Player: weedlord420 Result: Self-destructed Performance ------------- Evolutions (4) 2000 Regions Visited (7) 1400 Robots Destroyed (92) 460 Value Destroyed (2539) 2539 Prototype IDs (29) 580 Alien Tech Used (0) 0 Bonus (1263) 1263 TOTAL SCORE: 8242 Bonus ------- High Alert Combat Kills 126 Follower Combat Kills 865 Registered with UFD 300 Friendly Fire -28 Cogmind --------- Core Integrity 503/850 Matter 130/300 Energy 28/100 System Corruption 5% Temperature Cool (0) Movement Core (400) Ox7 Location -6/Factory Parts ------- > --- POWER (1) -------- (None) > --- PROPULSION (2) --- (None) > --- UTILITY (10) ----- Scrap Suit Large Storage Unit Improved Signal Interpreter Improved Target Analyzer Hacking Suite System Shield > --- WEAPON (2) ------- (None) > --- INVENTORY (15) --- Improved Airjet Cooled VTOL Module Advanced Terrain Scanner Surveybot 17 Chip Force Field Hacking Suite Authchip [Propulsion] Authchip [Propulsion] Relay Coupler [Heavy] (11) Improved System Restoration Module Heavy Missile Launcher Plasma Cutter Heavy Pick DRS Beacon (Ready) Peak State ------------ > --- POWER ------------ Fission Core > --- PROPULSION ------- Compact Wheel Overtuned Scrapsphere > --- UTILITY ---------- Scrap Suit Large Storage Unit Improved Sensor Array Improved Signal Interpreter Improved Target Analyzer Improved Utility Shielding Hardened Medium Armor Plating Hacking Suite System Shield > --- WEAPON ----------- Force Rifle Hypervelocity Gauss Rifle > --- INVENTORY -------- Nuclear Core Armored Treads Advanced Terrain Scanner Surveybot 17 Chip Improved Target Analyzer Improved Utility Shielding Authchip [Propulsion] Authchip [Propulsion] Arc Projector Thermic Laser Heavy Plasma Cannon Heavy Missile Launcher Plasma Cutter Heavy Pick DRS Beacon [Rating: 58] Favorites ----------- Power Light Nuclear Core Engine Subdweller Power Source Power Core Light Nuclear Core Propulsion Advanced Treads Treads Advanced Treads Wheel Wheel Flight Unit Improved VTOL Module Utility Large Storage Unit Device Drone Bay Storage Large Storage Unit Processor Improved Terrain Scan Processor Hackware Hacking Suite Protection Gun Armor Weapon Shotgun Energy Gun Heavy Particle Gun Energy Cannon Heavy Plasma Cannon Ballistic Gun Shotgun Ballistic Cannon Assault Cannon Launcher Heavy Missile Launcher Impact Weapon Heavy Hammer Piercing Weapon Heavy Pick Special Melee Weapon Datajack Build | -11 -10 -10 -8 -8 -8 -8 -6 ------- Run | Yrd Mat Sub Mat Sto Rec Scr Fac Slots Evolved 8 | . . . 4 . . . 4 Power . | . . . . . . . . Propulsion . | . . . . . . . . Utility 8 | . . . 4 . . . 4 Weapon . | . . . . . . . . Parts Attached 98 | 6 6 15 16 18 4 15 18 Power 11 | 1 1 3 . . 1 2 3 Engine 7 | 1 1 3 . . . 1 1 Core 4 | . . . . . 1 1 2 Reactor . | . . . . . . . . Propulsion 19 | 2 1 4 4 6 . 2 . Treads 9 | 2 1 2 2 2 . . . Leg . | . . . . . . . . Wheel 8 | . . 2 2 2 . 2 . Hover . | . . . . . . . . Flight 2 | . . . . 2 . . . Utility 28 | 1 2 1 6 3 1 8 6 Device 8 | . 1 . 2 1 1 2 1 Storage 4 | 1 1 . 1 . . 1 . Processor 5 | . . . 1 1 . 1 2 Hackware 3 | . . . 1 . . 2 . Protection 8 | . . 1 1 1 . 2 3 Artifact . | . . . . . . . . Weapon 40 | 2 2 7 6 9 2 3 9 Energy Gun 8 | . . . 3 2 . . 3 Energy Cannon 1 | . . . . . . . 1 Ballistic Gun 13 | 2 2 3 2 . . 2 2 Ballistic Cannon 4 | . . 3 . 1 . . . Launcher 5 | . . . . 3 1 . 1 Special Weapon . | . . . . . . . . Impact Weapon 6 | . . 1 1 3 1 . . Slashing Weapon . | . . . . . . . . Piercing Weapon 2 | . . . . . . . 2 Special Melee Weapon 1 | . . . . . . 1 . Unidentified Prototypes 7 | . . . 2 4 . . 1 Parts Lost 21 | . . 1 5 5 . . 10 Power 3 | . . 1 . . . . 2 Propulsion 7 | . . . 3 2 . . 2 Utility 6 | . . . 1 2 . . 3 Weapon 5 | . . . 1 1 . . 3 Highest Loss Streak 5 | . . 1 4 3 . . 5 To Critical Strikes . | . . . . . . . . Average Slot Usage (%) 83 | . 86 91 67 78 83 78 91 Engine 5 | . 14 12 7 7 1 . 1 Core 3 | . . . . . 5 6 4 Treads 12 | . 27 19 4 3 15 11 . Wheel 5 | . . 5 6 9 . 2 12 Device 6 | . 2 9 1 3 6 6 12 Storage 8 | . 14 12 7 7 7 7 6 Processor 8 | . . . 4 10 15 12 12 Hackware 5 | . . . 4 7 7 8 13 Protection 7 | . . 3 14 12 7 6 12 Ballistic Gun 8 | . 28 18 2 . . 1 7 Ballistic Cannon 3 | . . 4 . 3 7 5 . Impact Weapon 3 | . . 2 5 5 7 5 . Peak Build Rating 58 | 6 11 25 39 40 44 42 58 Average Rating 31 | 4 9 16 31 35 41 36 53 On Entrance 24 | . 6 11 24 37 36 42 36 Naked Turns 35 | . . . . . . 35 . Heaviest Build 65 | 11 32 36 40 45 47 45 65 Greatest Support 44 | 40 40 40 40 44 44 44 24 Greatest Overweight (x) 13 | . . 1 13 4 1 6 6 Average Overweight (x) . | . . . 1 1 . . 2 Largest Inventory Capacity 15 | 8 15 15 15 15 15 15 15 Average Capacity 14 | 7 14 15 15 15 15 14 15 Most Carried 15 | 5 15 15 15 15 15 15 15 Average Carried 14 | 3 12 14 13 14 14 13 14 Final Capacity 15 | 8 15 15 15 15 15 15 15 Final Carried 15 | 3 15 15 15 15 15 15 14 Class Distribution -------------------- 72% | Mutant 14% | Derelict-Mutant 6% | Hacker-Mutant 5% | Commander-Mutant Dominant Class ---------------- Mutant | -10/Materials Mutant | -10/Subcaves Mutant | -8/Materials Commander-Mutant | -8/Storage Mutant | -8/Recycling Mutant | -8/Scraptown Derelict-Mutant | -6/Factory Resources | -11 -10 -10 -8 -8 -8 -8 -6 ----------- Run | Yrd Mat Sub Mat Sto Rec Scr Fac Matter Collected 2080 | 226 419 654 148 259 40 83 251 Remotely . | . . . . . . . . Salvage Created 2735 | . 581 531 675 453 169 . 326 Parts 168 | . 58 35 33 10 4 . 28 Haulers Intercepted 3 | . . . 1 2 . . . Recyclers Shooed 2 | . . . 1 . 1 . . Parts Field Recycled . | . . . . . . . . Retrieved Matter . | . . . . . . . . Parts Self-Destructed 17 | . . 17 . . . . . Prevented 2 | . . 2 . . . . . Kills | -11 -10 -10 -8 -8 -8 -8 -6 ------- Run | Yrd Mat Sub Mat Sto Rec Scr Fac Combat Hostiles Destroyed 59 | . 14 16 15 6 . . 8 Melee 10 | . . 3 5 . . . 2 Guns 30 | . 14 8 5 1 . . 2 Cannons 3 | . . 3 . . . . . AOE 6 | . . . . 2 . . 4 Classes Destroyed 13 | . 6 2 2 1 1 . 1 Worker 5 | . 1 . 1 2 . . 1 Builder 7 | . 4 . 2 1 . . . Hauler 3 | . . . 1 2 . . . Recycler 3 | . . . . . 3 . . Mechanic 1 | . . . . 1 . . . Operator 5 | . 1 . 1 2 . . 1 Watcher 9 | . 3 . 2 2 . . 2 Swarmer 18 | . 5 4 6 . . . 3 Grunt 22 | . 9 2 5 6 . . . Sentry 4 | . . 1 2 . . . 1 Hunter 3 | . . . 2 . . . 1 Programmer 3 | . . . . . . . 3 Subdweller 9 | . . 9 . . . . . Best Kill Streak 6 | . 6 6 5 4 2 . 5 Combat Bots Only 6 | . 3 6 5 2 . . 4 Max Kills in Single Turn 2 | . 2 2 1 2 1 . 2 Gunslinging 1 | . . 1 . . . . . Exploded 2 | . . . . 1 . . 2 Melee 1 | . . 1 1 . . . 1 Uniques/NPCs Destroyed . | . . . . . . . . Combat | -11 -10 -10 -8 -8 -8 -8 -6 -------- Run | Yrd Mat Sub Mat Sto Rec Scr Fac Hostile Shots Fired 398 | . 40 64 112 54 4 . 124 Missed 108 | . 11 11 29 21 . . 36 Damage Taken 5022 | . 360 952 970 694 55 . 1991 Core 886 | . 59 165 186 129 . . 347 Absorbed by Shields . | . . . . . . . . Redirected to Shielding 233 | . . . . . . . 233 Regen/Repaired (Parts) 172 | . 63 . . . . . 109 Core Remaining (%) 50 | 100 . 10 . . . 42 . Volleys Fired 177 | . 45 66 19 11 . . 36 Largest 2 | . 2 2 2 2 . . 2 Hottest 129 | . 46 71 115 94 . . 129 Shots Fired 286 | . 89 95 30 17 . . 55 Gun 214 | . 89 47 30 10 . . 38 Cannon 63 | . . 48 . 2 . . 13 Launcher 9 | . . . . 5 . . 4 Special . | . . . . . . . . Kinetic 223 | . 89 95 3 2 . . 34 Thermal 41 | . . . 27 1 . . 13 Explosive 9 | . . . . 5 . . 4 Electromagnetic 13 | . . . . 9 . . 4 Robot Hit Streak 14 | . 10 12 9 9 . . 14 Robot Miss Streak 10 | . 10 6 4 3 . . 3 Penetration Max 1 | . . . . . . . 1 Secondary Targets 6 | . 3 3 . . . . . Max Gunslinging Chain 1 | . 1 1 . . . . . Shots Hit Robots 230 | . 51 58 52 25 8 1 35 Core Hits 111 | . 40 27 13 9 1 . 21 Critical Kills 5 | . . 1 1 . . . 3 Critical Parts Destroyed 11 | . . . 3 5 1 . 2 Critical Strikes 18 | . . 1 4 5 1 . 7 Destroy 7 | . . 1 . . . . 6 Smash 10 | . . . 4 5 1 . . Impale 1 | . . . . . . . 1 Melee Attacks 111 | . . 21 49 24 9 1 7 Impact 103 | . . 21 49 24 9 . . Slashing . | . . . . . . . . Piercing 7 | . . . . . . . 7 Sneak Attacks 19 | . . . 6 6 6 1 . Combat Hostiles 1 | . . . . . 1 . . Follow-up Attacks . | . . . . . . . . Damage Inflicted 7434 | . 802 1176 2055 1883 468 . 1050 Guns 2130 | . 802 580 366 120 . . 262 Cannons 399 | . . 144 . . . . 255 Explosions 1065 | . . . . 628 . . 437 Melee 3840 | . . 452 1689 1135 468 . 96 Ramming . | . . . . . . . . Kinetic 1794 | . 802 724 28 . . . 240 Thermal 660 | . . . 338 67 . . 255 Explosive 998 | . . . . 561 . . 437 Electromagnetic 142 | . . . . 120 . . 22 Impact 3744 | . . 452 1689 1135 468 . . Slashing . | . . . . . . . . Piercing 96 | . . . . . . . 96 Highest Corruption 5 | . 4 4 . . . . 5 Average Corruption 3 | . 3 4 . . . . 2 Corruption Purged . | . . . . . . . . Corruption Blocked . | . . . . . . . . Effects 52 | . 16 34 . . . . 2 Message Errors 16 | . 6 10 . . . . . Matter Fused 10 | . 3 6 . . . . 1 Heat Flow Errors 9 | . 2 7 . . . . . Energy Discharges 8 | . 3 4 . . . . 1 Parts Fused 3 | . . 3 . . . . . Data Loss (minor) 3 | . . 3 . . . . . Data Loss (major) 2 | . 1 1 . . . . . Weapon Failures 1 | . 1 . . . . . . Overload Shots . | . . . . . . . . Overflow Damage 1300 | . . 20 420 718 132 . 10 Projectiles . | . . . . . . . . Explosions 76 | . . . . 66 . . 10 Melee 1224 | . . 20 420 652 132 . . Knockbacks 22 | . . 5 9 5 3 . . Impact 20 | . . 3 9 5 3 . . Kinetic 2 | . . 2 . . . . . Secondary . | . . . . . . . . Self-Inflicted Damage 173 | . . . . 137 . . 36 Shots 5 | . . . . 3 . . 2 Rammed . | . . . . . . . . Targets Rammed . | . . . . . . . . Kicked . | . . . . . . . . Crushed . | . . . . . . . . Highest Temperature 251 | . 251 236 153 45 . . 228 Average Temperature 66 | . 60 95 56 22 . . 77 Received Heat Transfer 1155 | . 132 267 306 288 54 . 108 Siege Activations . | . . . . . . . . Robots Corrupted 19 | . . 2 9 6 2 . . Combat Hostiles 10 | . . 2 5 3 . . . Parts Fried 26 | . . 1 12 10 3 . . Impact Corruptions 52 | . . 4 23 20 5 . . Robots Melted . | . . . . . . . . Combat Hostiles . | . . . . . . . . Parts Melted 2 | . . 1 . . . . 1 Heat Transferred 971 | . . . 521 100 . . 350 Parts Sabotaged . | . . . . . . . . Parts Stolen . | . . . . . . . . Parts Stripped . | . . . . . . . . Power Chain Reactions 1 | . . . . 1 . . . Alert | -11 -10 -10 -8 -8 -8 -8 -6 ------- Run | Yrd Mat Sub Mat Sto Rec Scr Fac Peak Influence 870 | . 184 . 375 870 333 . 203 Initial 280 | . . . . 157 280 . . Average 196 | . 68 . 145 702 209 . 38 Maximum Alert Level 3 | . 1 . 1 3 1 . 1 Low Security (%) 73 | 100 99 . 69 7 55 . 99 Level 1 12 | . . . 30 7 44 . . Level 2 1 | . . . . 10 . . . Level 3 12 | . . . . 75 . . . Level 4 . | . . . . . . . . Level 5 . | . . . . . . . . High Security . | . . . . . . . . Max Security . | . . . . . . . . Squads Dispatched 16 | . 2 . 3 7 . . 4 Investigation 3 | . . . 1 2 . . . Extermination 2 | . . . . . . . 2 Reinforcement 9 | . 2 . 2 3 . . 2 Assault 2 | . . . . 2 . . . Garrison . | . . . . . . . . Intercept . | . . . . . . . . Searches Triggered . | . . . . . . . . Construction Impeded 2 | . . . 1 1 . . . Haulers Reinforced . | . . . . . . . . Active Scanning Responses . | . . . . . . . . Cargo Convoy Interrupts . | . . . . . . . . Stealth | -11 -10 -10 -8 -8 -8 -8 -6 --------- Run | Yrd Mat Sub Mat Sto Rec Scr Fac Distress Signals 3 | . 1 . 1 1 . . . Communications Jammed . | . . . . . . . . Distress Signals . | . . . . . . . . Times Spotted 121 | . 23 16 25 34 3 . 20 Peak Tracking Total 12 | . 3 6 8 12 1 . 8 Tactical Retreats 6 | . . 1 3 1 . . 1 Traps | -11 -10 -10 -8 -8 -8 -8 -6 ------- Run | Yrd Mat Sub Mat Sto Rec Scr Fac Traps Triggered 8 | . 4 . . 2 . . 2 Indirectly . | . . . . . . . . Trap Hack Attempts . | . . . . . . . . Triggered . | . . . . . . . . Disarmed . | . . . . . . . . Reprogrammed . | . . . . . . . . Reused . | . . . . . . . . Traps Extracted . | . . . . . . . . Installed . | . . . . . . . . Triggered 1 | . . . 1 . . . . Machines | -11 -10 -10 -8 -8 -8 -8 -6 ---------- Run | Yrd Mat Sub Mat Sto Rec Scr Fac Machines Disabled 11 | . 2 1 1 6 . . 1 Max in Single Turn 2 | . 2 1 1 1 . . 1 Garrison Access 1 | . . . . . . . 1 Machines Repaired . | . . . . . . . . Machines Dismantled . | . . . . . . . . Machines Sabotaged . | . . . . . . . . Overloaded Fab Kills . | . . . . . . . . Hacking | -11 -10 -10 -8 -8 -8 -8 -6 --------- Run | Yrd Mat Sub Mat Sto Rec Scr Fac Machines Accessed 29 | . 4 2 3 4 1 5 10 Terminals 17 | . 3 . 2 4 1 . 7 Fabricators . | . . . . . . . . Repair Stations 2 | . 1 . . . . . 1 Recycling Units . | . . . . . . . . Scanalyzers . | . . . . . . . . Garrison Access 3 | . . . 1 . . . 2 Total Hacks 102 | . 11 12 6 8 3 32 30 Successful 70 | . 5 12 3 4 3 32 11 Failed 32 | . 6 . 3 4 . . 19 Catastrophic 7 | . 2 . . . . . 5 Database Lockouts . | . . . . . . . . Manual 23 | . 5 . 3 3 2 . 10 Terminals 45 | . 7 . 4 8 3 . 23 Fabricators . | . . . . . . . . Repair Stations 7 | . 4 . . . . . 3 Recycling Units . | . . . . . . . . Scanalyzers . | . . . . . . . . Garrison Access 6 | . . . 2 . . . 4 Terminal Hacks 59 | . 1 12 2 3 3 32 6 Record 43 | . . 11 . . . 31 1 Robot Schematic 2 | . . . . . 1 . 1 Robot Analysis 2 | . . . . . 2 . . Prototype ID Bank 1 | . . . . . . . 1 Open Door 2 | . . . . 2 . . . Branch Access Points 1 | . . . 1 . . . . Terminal Index 1 | . . . . . . . 1 Unreport Threat 4 | . 1 . . 1 . . 2 Locate Traps 1 | . . . 1 . . . . Derelict Proto ID Bank 2 | . . 1 . . . 1 . Fabricator Hacks . | . . . . . . . . Repair Station Hacks 5 | . 3 . . . . . 2 Scan Component 3 | . 2 . . . . . 1 Repair 2 | . 1 . . . . . 1 Recycling Unit Hacks . | . . . . . . . . Scanalyzer . | . . . . . . . . Garrison Access Hacks 2 | . . . 1 . . . 1 Unlock Access 1 | . . . 1 . . . . Seal Access 1 | . . . . . . . 1 Unauthorized Hacks 4 | . 1 . . 1 . . 2 Terminals 4 | . 1 . . 1 . . 2 Botnet 1 | . . . . . . . 1 Operators 3 | . 1 . . 1 . . 1 Fabricators . | . . . . . . . . Repair Stations . | . . . . . . . . Recycling Units . | . . . . . . . . Scanalyzers . | . . . . . . . . Garrison Access . | . . . . . . . . Data Cores Recovered 1 | . . . . 1 . . . Used 1 | . . . . 1 . . . Hacking Detections 19 | . 3 . 3 3 1 . 9 Full Trace Events 2 | . 1 . . 1 . . . Feedback Events . | . . . . . . . . Feedback Blocked . | . . . . . . . . Robot Schematics Acquired 2 | . . . . . 1 . 1 Robots Built . | . . . . . . . . Authchips . | . . . . . . . . Time . | . . . . . . . . Total Robot Build Rating . | . . . . . . . . Part Schematics Acquired . | . . . . . . . . Parts Built . | . . . . . . . . Authchips . | . . . . . . . . Time . | . . . . . . . . Total Part Build Rating . | . . . . . . . . Parts Repaired 2 | . 1 . . . . . 1 Time 55 | . 36 . . . . . 19 Parts Recycled . | . . . . . . . . Recycled Matter . | . . . . . . . . Retrieved Matter . | . . . . . . . . Retrieved Components . | . . . . . . . . Parts Scanalyzed . | . . . . . . . . Part Schematics Acquired . | . . . . . . . . Parts Damaged . | . . . . . . . . Bothacking | -11 -10 -10 -8 -8 -8 -8 -6 ------------ Run | Yrd Mat Sub Mat Sto Rec Scr Fac Used RIF Installer . | . . . . . . . . Robots Hacked 1 | . . . . . . 1 . Non-combat . | . . . . . . . . Combat 1 | . . . . . . 1 . Robot Hacks Applied 1 | . . . . . . 1 . parse_system 1 | . . . . . . 1 . Relay Couplers Released 4 | . . . . . . . 4 Programmers 4 | . . . . . . . 4 Fabnet Peak Effective % . | . . . . . . . . Robots Rewired . | . . . . . . . . Allies Hacked 1 | . . . . . . . 1 Hacks Repelled . | . . . . . . . . Allies | -11 -10 -10 -8 -8 -8 -8 -6 -------- Run | Yrd Mat Sub Mat Sto Rec Scr Fac Total Allies 12 | . . . . 12 . . . Largest Group 10 | . . . . 10 2 2 2 Highest-Rated Group 173 | . . . . 173 62 62 62 Highest-Rated Ally 31 | . . . . 31 31 31 31 Total Orders 2 | . . . . . 2 . . EXPLORE 1 | . . . . . 1 . . RETURN 1 | . . . . . 1 . . Ally Attacks 174 | . . . . 139 15 . 20 Total Damage 2188 | . . . . 1702 251 . 235 Kills 30 | . . . . 23 3 . 4 Allies Corrupted . | . . . . . . . . Allies Melted . | . . . . . . . . Intel | -11 -10 -10 -8 -8 -8 -8 -6 ------- Run | Yrd Mat Sub Mat Sto Rec Scr Fac Robot Analysis Total 2 | . . . . . 2 . . Derelict Logs Recovered 4 | . . 1 . . . 3 . Drone Launches 2 | . . . . . 2 . . Drone Recoveries 1 | . . . . . 1 . . Exploration | -11 -10 -10 -8 -8 -8 -8 -6 ------------- Run | Yrd Mat Sub Mat Sto Rec Scr Fac Turns Passed 9527 | 74 1196 1737 667 839 890 2624 1500 Spaces Moved 5802 | 52 522 1022 334 498 535 1789 1050 Core 138 | 20 . . 4 . . 114 . Treads 3251 | 32 522 655 43 102 535 1362 . Legs . | . . . . . . . . Wheels 2413 | . . 367 287 396 . 313 1050 Hover . | . . . . . . . . Flight . | . . . . . . . . Fastest Speed 50 | 50 160 95 95 95 145 50 97 Average Speed 135 | 117 160 140 128 124 145 143 108 Slowest Speed 700 | 160 160 160 700 145 225 350 130 Overloaded Moves . | . . . . . . . . Propulsion Burnouts . | . . . . . . . . Robots Hopped . | . . . . . . . . Cave-ins Triggered . | . . . . . . . . Exploration Rate (%) 62 | 4 84 61 34 94 98 90 36 Regions Visited 7 Branch Regions 4 Pre-discovered Areas 6 | . . 1 . . . 5 . Known Exits Taken 4 | . . 1 1 1 . 1 . Unknown Exits Taken 3 | 1 1 . . . 1 . . Scrap Searched 14 | . . 6 . . . 8 . Spaces Dug 4 | . . 2 . . . . 2 Terrain Destroyed 144 | . 41 6 . 71 . . 26 Melee 4 | . . 2 . . . . 2 Projectile 8 | . . 4 . . . . 4 AOE 132 | . 41 . . 71 . . 20 Terrain Rammed . | . . . . . . . . Walls Destroyed . | . . . . . . . . Machines Disabled . | . . . . . . . . Actions | -11 -10 -10 -8 -8 -8 -8 -6 --------- Run | Yrd Mat Sub Mat Sto Rec Scr Fac Total 7039 | 64 793 1204 493 661 632 1850 1342 Wait 695 | . 203 58 54 94 76 5 205 Move 5795 | 51 521 1021 333 497 534 1788 1050 Hop . | . . . . . . . . Pick Up 98 | 7 15 9 15 7 5 27 13 Fast Attach 18 | 2 1 2 . 6 . 5 2 Attach 40 | 4 1 1 13 6 1 9 5 Detach 2 | . . . 1 1 . . . Swap 40 | . 4 12 3 6 3 1 11 Drop 63 | . 3 14 6 9 4 14 13 Fire 177 | . 45 66 19 11 . . 36 Melee 111 | . . 21 49 24 9 1 7 Ram . | . . . . . . . . Kick . | . . . . . . . . Crush . | . . . . . . . . Escape Stasis . | . . . . . . . . Rewire . | . . . . . . . . Trap . | . . . . . . . . Miscellaneous . | . . . . . . . . Route ------- -11/Scrapyard -10/Materials (discovered 6 exits: [*Mat x3] / [*Min x2] / *Sub) -10/Subcaves (discovered 3 exits: *Mat x2 / Rec) -8/Materials (discovered 3 exits: *Sto x2 / Gar) -8/Storage (discovered 2 exits: [*Fac] / *Rec) -8/Recycling (discovered 2 exits: *Fac / *Scr) -8/Scraptown (discovered 2 exits: *Fac x2) -6/Factory (discovered 5 exits: *Fac x3 / *Low / *Ext) History --------- Turn | Location | Event 17 | -11/Scrapyard | Discovered new exit (range 15) 75 | -11/Scrapyard | Entered Materials 109 | -10/Materials | Discovered new exit (range 14) 194 | -10/Materials | Discovered new exit (range 5) 313 | -10/Materials | Build established: Mutant 553 | -10/Materials | Discovered new exit (range 16) 762 | -10/Materials | Repaired Broken Lgt. Treads 924 | -10/Materials | Discovered new exit (range 7) 1040 | -10/Materials | Discovered new exit (range 10) 1209 | -10/Materials | Discovered new exit (range 4) 1271 | -10/Materials | Entered Subcaves 1352 | -10/Subcaves | A swath of the cavern ceiling suddenly collapsed 1659 | -10/Subcaves | Visited Clippyterm 1664 | -10/Subcaves | Identified exit to Materials 1664 | -10/Subcaves | Identified exit to Recycling 1703 | -10/Subcaves | Learned location of Zion (-7) 1781 | -10/Subcaves | Shifting Twisted Machinery released Flamer 1781 | -10/Subcaves | Shifting Twisted Machinery released Mak. Light Armor Plating 1959 | -10/Subcaves | Disturbed a concealed Subdweller 2387 | -10/Subcaves | Visited 4L-MR0's lab 2414 | -10/Subcaves | Found Gun Armor 2416 | -10/Subcaves | Attached Gun Armor, gained temporary slots: Weapon x2 2595 | -10/Subcaves | Core integrity fell below 50% 2644 | -10/Subcaves | A swath of the cavern ceiling suddenly collapsed 2940 | -10/Subcaves | Core integrity fell below 20% 3008 | -10/Subcaves | Entered Materials 3008 | -8/Materials | Evolved 4 slots: Utility x4 3008 | -8/Materials | Discovered new exit (range 8) 3348 | -8/Materials | Identified exit to Garrison 3389 | -8/Materials | Identified exit to Storage 3554 | -8/Materials | Lost 4 parts (2n1u1w) 3675 | -8/Materials | Entered Storage 3698 | -8/Storage | Assisted by bots powering up and referring to "LRC-V3" 3843 | -8/Storage | Lost 3 allies 3935 | -8/Storage | Discovered new exit (range 16) 3998 | -8/Storage | Build established: Commander-Mutant 4095 | -8/Storage | Lost 3 parts (1n1u1w) 4211 | -8/Storage | Lost 4 allies 4301 | -8/Storage | Core integrity fell below 50% 4489 | -8/Storage | Build established: Mutant 4497 | -8/Storage | Met a pair of Derelict thieves 4507 | -8/Storage | Used back door to open Recycling access 4507 | -8/Storage | Discovered exit to Recycling (range 5) 4514 | -8/Storage | Entered Recycling 4514 | -8/Recycling | Accompanied by 2 allies 4861 | -8/Recycling | Scanned before Scraplab entrance 5128 | -8/Recycling | Discovered new exit (range 5) 5383 | -8/Recycling | Entered Scraplab 5395 | -8/Recycling | Discovered new exit (range 2) 5404 | -8/Recycling | Entered Scraptown 5404 | -8/Scraptown | Accompanied by 2 allies 5548 | -8/Scraptown | Heard Great Nut preacher, LISTEN AND RECITE! 5669 | -8/Scraptown | Scanned Subdweller tech in exchange for log data 5675 | -8/Scraptown | Learned Research stockpile data 5721 | -8/Scraptown | Visited Spacefarers 5812 | -8/Scraptown | Visited Red Mages 5874 | -8/Scraptown | Visited Cyclists 6078 | -8/Scraptown | Visited Cave Peace 6308 | -8/Scraptown | Discovered new exit (range 3) 6413 | -8/Scraptown | Visited Awakened 6427 | -8/Scraptown | Visited Bundlers 6529 | -8/Scraptown | Visited TADAMA 6598 | -8/Scraptown | Visited UFD Registry 6598 | -8/Scraptown | Registered with UFD as "Cargoplate" 6653 | -8/Scraptown | Visited Cartography Club 6791 | -8/Scraptown | Visited Research Penetration Think Tank 6846 | -8/Scraptown | Visited DA-N13 Charitable Foundation 6852 | -8/Scraptown | Found DCF Scrap (28 items) 6894 | -8/Scraptown | Visited Scrap Suit Storage 7043 | -8/Scraptown | Visited Scrapoid Research Area 7072 | -8/Scraptown | Visited Science Guys 7119 | -8/Scraptown | Visited Curators Association 7222 | -8/Scraptown | Visited Chapter 10 7357 | -8/Scraptown | Found Surveybot 17 Chip 7395 | -8/Scraptown | Released all parts (9) 7415 | -8/Scraptown | Learned location of Storage (-8) 7415 | -8/Scraptown | Learned location of Warlord (-4) 7415 | -8/Scraptown | Learned location of Archives (-6) 7415 | -8/Scraptown | Learned location of Armory (-4) 7415 | -8/Scraptown | Learned 12 Materials zone layouts 7415 | -8/Scraptown | Learned 20 Factory zone layouts 7415 | -8/Scraptown | Learned 8 Research zone layouts 7415 | -8/Scraptown | Learned 12 Lower Caves zone layouts 7415 | -8/Scraptown | Learned location of 2 exits from Factory 7415 | -8/Scraptown | Learned location of 2 exits from Research 7415 | -8/Scraptown | Learned location of 2 exits from Proximity Caves 7415 | -8/Scraptown | Learned 12 Proximity Caves zone layouts 7654 | -8/Scraptown | Visited Derelict Rescue Squad 7664 | -8/Scraptown | Found DRS Beacon 7937 | -8/Scraptown | Found Scrap Suit 8020 | -8/Scraptown | Discovered new exit (range 3) 8022 | -8/Scraptown | Identified exit to Factory 8028 | -8/Scraptown | Entered Factory 8028 | -6/Factory | Accompanied by 2 allies 8028 | -6/Factory | Evolved 4 slots: Utility x4 8029 | -6/Factory | Identified exit to Extension 8029 | -6/Factory | Identified exit to Factory 8095 | -6/Factory | Build established: Derelict-Mutant 8331 | -6/Factory | Discovered new exit (range 14) 8414 | -6/Factory | Identified exit to Lower Caves 9243 | -6/Factory | Repaired Imp. Utility Shielding 9412 | -6/Factory | Build established: Hacker-Mutant 9460 | -6/Factory | Noticed a derelict Sapper rigging charges 9498 | -6/Factory | Lost 5 parts (1n3u1w) 9528 | -6/Factory | Self-destructed Last Messages --------------- 09508_ Ovr. Scrapsphere repairs itself (+6). 09508_ Acquired 19 matter. 09509_ Penetrated by Slug. 09510_ H-66 Slayer suffers critical hit (Impale). 09510_ H-66 Slayer destroyed. 09511_ Slug penetrates Construction Platform. 09511_ Penetrated by Slug. 09511_ Ovr. Scrapsphere destroyed. 09512_ System corrupted: Matter fused (-5). 09514_ Penetrated by Slug. 09514_ Hyp. Gauss Rifle destroyed. 09517_ Penetrated by Slug. 09526_ R-10 Processor collects Mic. Nuclear Core. 09527_ Penetrated by Slug. 09527_ Arc Projector destroyed. 09527_ R-10 Processor suffers critical hit (Destroy). 09527_ R-10 Processor destroyed. Map ----- +----------------------------------------------------+ | + """ ????????????????########## #???# | | "" # """ ????????? =* = #???# > | | "" # """ ????????????????###############???# | | Y" # """ ????????????????????# #???# | | "" # ????????????????????#= """ ###### | | "" # """ ????????????????????# G" / | | # """ ????????????????????# """ ## | | ##### """ ???????????????????# ## | | ??### """ ??????????????????# ## | | ### # ?????????????????# """""" ## | | # ?????????????????# """""" ## | | ??????????????????# """""" # | | [ ] ???????????????????# """""" + | | [ "####### #?# #???????# # | | #?# #+###+######### """""" # # | | ### # # """""" # | | "## # """ = # """""" ^ ^# | | ## # "Y" # """""" ### # | | ## # " " # # | | ## # ###+####### # | | ## # # ##### | | ###+## """"""" # | | + """"""" + ! | | ## """"""" # | | ## """"""" = # ###### # | | ### ## h%@ *%= ## ##????# ## | | #?# ################# #######+###### | | #?# + | | #?# # | | ### #?#### # | | ??# #######+####### ## | | #?#### # # ## | | #????# #= + ## | | #????# # =* ########### | | #????######## = #?????????# | | #???????????# """"T"""" #?????????# | | #???????????# """"""""""" #?????????############## | | #???????????###############??????????????????????? | | | | | | | | | | | | | | | | | | | | | | | | | +----------------------------------------------------+ Best States ------------- Heat Dissipation 45 Energy Generation 18 Energy Capacity 310 Matter Stores 300 Matter Capacity 300 Sight Range 16 Robot Scan Range 15 Terrain Scan Range 14 Terrain Scan Density 110 Armor Coverage 225 Utility Shielding 66 Evasion (%) 50 Melee Accuracy 5 Target Analysis 6 Recoil Reduction 2 Offensive Hacking 10 Defensive Hacking 10 Authchip Count 2 Item Schematics ----------------- None Robot Schematics ------------------ G-47 Trooper | -8/Recycling | Hacked P-60 Hacker | -6/Factory | Hacked Fabricated ------------ Nothing Alien Tech Used ----------------- None Achievements -------------- Batter Up Challenges ------------ None Game ------ Seed AntigravWardroneShielding Manual? 0 Play Time 01:15:33 Cumulative 91.2 hours Start 2024.11.01 @ 13:51:06 End 2024.11.01 @ 15:36:51 Sessions 1 Manual Loads 0 Difficulty Rogue Special Mode None Game No. 148 Rogue 147 Adventurer 1 Explorer 0 Win Type - Total 0 Types 0/0/0/0/0/0/0/0/0 Lore% 55 Gallery% 55 Achievement% 45 Wizard Run 0 Options --------- Layout 1 ASCII 0 Keyboard 0 Movement Mouse Keybinds 0 Fullscreen 2 Font 24/Terminus Map View 50x35 Zoom Use 0% Tactical HUD 1 Map Filters NONE Filters NONE Steam 1 RUN: 520cc031-9eb1-406f-a4bb-6342acf5ba87